fUST/lending_fUST_20251208
["ID","MTS","AMOUNT","RATE_DAILY","PERIOD"]
[396943125,1765131040611,-151.0,0.00010548,2]
[396943126,1765131040620,-94.36086731,0.00010593,2]
[396943383,1765131043247,-197.75428973,0.00010593,2]
[396943385,1765131043258,-155.79370686,0.00010633,2]
[396943387,1765131043269,-201.7171258,0.00010685,2]
[396943389,1765131043280,-301.8864018,0.00010685,2]
[396943391,1765131043290,-505.4231329,0.00010699,2]
[396943393,1765131043301,-336.18534291,0.00010699,2]
[396954822,1765131182230,158.69,5.1e-05,2]
[396954863,1765131246675,158.7,5.1e-05,2]
[396954882,1765131302320,158.69,5.1e-05,2]
[396955019,1765131367459,158.7,5.1e-05,2]
[396955074,1765131422161,158.69,5.1e-05,2]
[396955181,1765131486712,158.7,5.1e-05,2]
[396955303,1765131542097,158.69,5.1e-05,2]
[396955425,1765131606570,158.7,5.1e-05,2]
[396955605,1765131662488,158.69,5.1e-05,2]
[396955766,1765131727980,158.7,5.1e-05,2]
[396955927,1765131782680,158.69,5.1e-05,2]
[396955939,1765131846380,158.7,5.1e-05,2]
[396955942,1765131902064,158.69,5.1e-05,2]
[396955943,1765131941122,-158.69,5.9e-05,2]
[396955944,1765131941146,-72.79065534,6.3e-05,2]
[396955991,1765131967516,158.7,5.1e-05,2]
[396955993,1765132023676,158.69,5.1e-05,2]
[396955994,1765132030084,-158.69,6e-05,2]
[396955995,1765132030105,-98.65958951,6.3e-05,2]
[396955999,1765132090514,158.69,5.1e-05,2]
[396956013,1765132144015,158.69,5.1e-05,2]
[396956016,1765132146133,-158.69,6.1e-05,2]
[396956017,1765132146152,-33.54975515,6.3e-05,2]
[396956018,1765132146170,-316.8991474,6.412e-05,2]
[396956019,1765132146191,-150.0,6.747e-05,2]
[396956020,1765132146211,-150.0,6.966e-05,2]
[396956021,1765132146230,-158.69,7.1e-05,2]
[396956022,1765132146252,-150.0,7.289e-05,2]
[396956023,1765132146272,-158.69,8.1e-05,2]
[396956024,1765132146528,-373.94099394,8.412e-05,2]
[396956025,1765132146551,-54.3468856,9.1e-05,2]
[396956047,1765132205131,167.75,5.1e-05,2]
[396956100,1765132233165,-167.75,6.9e-05,2]
[396956101,1765132233174,-167.75,8.7e-05,2]
[396956102,1765132233184,-225.0,9.1e-05,2]
[396956103,1765132233193,-398.83713148,9.789e-05,2]
[396956104,1765132233260,-0.47363631,9.789e-05,2]
[396956105,1765132233271,-300.0,9.974e-05,2]
[396956106,1765132233280,-1179.52638869,9.974e-05,2]
[396956117,1765132238273,-20.47361131,9.974e-05,2]
[396956118,1765132238282,-500.0,9.974e-05,2]
[396956119,1765132238292,-182.02638869,9.974e-05,2]
[396956120,1765132238330,-317.97361131,9.974e-05,2]
[396956121,1765132238340,-500.0,9.974e-05,2]
[396956122,1765132238573,-500.0,9.974e-05,2]
[396956123,1765132238583,-500.0,9.974e-05,2]
[396956124,1765132238593,-500.0,9.974e-05,2]
[396956125,1765132238603,-500.0,9.974e-05,2]
[396956126,1765132238613,-384.7601225,9.974e-05,2]
[396956127,1765132238625,-115.2398775,9.974e-05,2]
[396956128,1765132238634,-500.0,9.974e-05,2]
[396956129,1765132238643,-385.7601084,9.974e-05,2]
[396956266,1765132240465,-226.53001949,9.974e-05,2]
[396956268,1765132240475,-500.0,9.974e-05,2]
[396956270,1765132240484,-500.0,9.974e-05,2]
[396956272,1765132240493,-500.0,9.974e-05,2]
[396956274,1765132240502,-500.0,9.974e-05,2]
[396956276,1765132240511,-500.0,9.974e-05,2]
[396956278,1765132240520,-646.41404867,9.974e-05,2]
[396956280,1765132240530,-500.0,9.974e-05,2]
[396956282,1765132240549,-500.0,9.974e-05,2]
[396956285,1765132240559,-500.0,9.974e-05,2]
[396956286,1765132240568,-500.0,9.974e-05,2]
[396956288,1765132240577,-500.0,9.974e-05,2]
[396956290,1765132240587,-500.0,9.974e-05,2]
[396956292,1765132240596,-500.0,9.974e-05,2]
[396956295,1765132240606,-500.0,9.974e-05,2]
[396956297,1765132240615,-500.0,9.974e-05,2]
[396956299,1765132240624,-500.0,9.974e-05,2]
[396956301,1765132240633,-500.0,9.974e-05,2]
[396956302,1765132240643,-500.0,9.974e-05,2]
[396956304,1765132240653,-500.0,9.974e-05,2]
[396956306,1765132240662,-500.0,9.975e-05,2]
[396956308,1765132240672,-500.0,9.975e-05,2]
[396956310,1765132240681,-500.0,9.975e-05,2]
[396956313,1765132240692,-500.0,9.975e-05,2]
[396956314,1765132240701,-500.0,9.975e-05,2]
[396956316,1765132240710,-500.0,9.975e-05,2]
[396956318,1765132240719,-202.91552401,9.975e-05,2]
[396956320,1765132240728,-500.0,9.975e-05,2]
[396956322,1765132240737,-500.0,9.975e-05,2]
[396956324,1765132240746,-1440.02222999,9.977e-05,2]
[396956327,1765132240764,-536.23219731,9.977e-05,2]
[396956329,1765132240773,-1455.417648,9.977e-05,2]
[396956331,1765132240782,-2578.32846329,9.977e-05,2]
[396956335,1765132240805,-1436.90376311,9.977e-05,2]
[396956337,1765132240814,-3342.43999779,0.0001,2]
[396956600,1765132243328,-2649.87100972,0.0001,2]
[396956612,1765132243437,-484.29175519,0.0001,2]
[396958595,1765132264913,153.06,5.1e-05,2]
[396964403,1765132327543,164.09,5.1e-05,2]
[396969218,1765132384197,214.28,5.1e-05,2]
[396970086,1765132460947,176.65,5.1e-05,2]
[396970114,1765132504836,213.53,5.1e-05,2]
[396970123,1765132582250,185.84,5.1e-05,2]
[396970208,1765132625186,212.98,5.1e-05,2]
[396970347,1765132701891,154.06,5.1e-05,2]
[396970384,1765132744847,211.8,5.1e-05,2]
[396970465,1765132819886,165.63,5.1e-05,2]
[396970521,1765132864840,210.88,5.1e-05,2]
[396970538,1765132940723,174.64,5.1e-05,2]
[396970539,1765132985167,210.16,5.1e-05,2]
[396970549,1765133059779,151.42,5.1e-05,2]
[396970550,1765133105470,208.98,5.1e-05,2]
[396970556,1765133178506,161.05,5.1e-05,2]
[396970580,1765133225010,208.02,5.1e-05,2]
[396970594,1765133227083,-208.02,5.3e-05,2]
[396970595,1765133227111,-208.02,5.5e-05,2]
[396970596,1765133227136,-92.39827742,5.6e-05,2]
[396970605,1765133246078,-107.60172258,5.6e-05,2]
[396970606,1765133246102,-208.02,5.6e-05,2]
[396970607,1765133246125,-208.02,5.8e-05,2]
[396970608,1765133246148,-208.02,6e-05,2]
[396970609,1765133246169,-306.82002314,6.008e-05,2]
[396970610,1765133246191,-83.08370014,6.2e-05,2]
[396970636,1765133298127,152.61,5.1e-05,2]
[396970651,1765133347139,184.45,5.1e-05,2]
[396970652,1765133353096,-184.45,5.3e-05,2]
[396970653,1765133353118,-184.45,5.5e-05,2]
[396970654,1765133353140,-184.45,5.6e-05,2]
[396970655,1765133353161,-184.45,5.8e-05,2]
[396970656,1765133353182,-184.45,6e-05,2]
[396970657,1765133353205,-184.45,6.2e-05,2]
[396970658,1765133353227,-300.68362268,6.3e-05,2]
[396970659,1765133353251,-184.45,6.4e-05,2]
[396970660,1765133353274,-184.45,6.6e-05,2]
[396970661,1765133353295,-184.45,6.7e-05,2]
[396970662,1765133353317,-150.0,6.772e-05,2]
[396970663,1765133353340,-184.45,6.9e-05,2]
[396970664,1765133353361,-150.0,7.095e-05,2]
[396970665,1765133353383,-184.45,7.1e-05,2]
[396970666,1765133353404,-184.45,7.3e-05,2]
[396970667,1765133353427,-177.36,7.43e-05,2]
[396970668,1765133353448,-184.45,7.5e-05,2]
[396970669,1765133353469,-184.45,7.6e-05,2]
[396970670,1765133353491,-236.48,7.753e-05,2]
[396970671,1765133353513,-184.45,7.8e-05,2]
[396970672,1765133353535,-184.45,8e-05,2]
[396970673,1765133353789,-399.31076779,8.027e-05,2]
[396970674,1765133353812,-295.6,8.076e-05,2]
[396970675,1765133353833,-198.13725368,8.173e-05,2]
[396970676,1765133353854,-184.45,8.2e-05,2]
[396970677,1765133353875,-354.80667476,8.3e-05,2]
[396970678,1765133353896,-179.0,8.362e-05,2]
[396970679,1765133353916,-300.0,8.363e-05,2]
[396970680,1765133353937,-300.0,8.363e-05,2]
[396970681,1765133353958,-300.0,8.363e-05,2]
[396970682,1765133353981,-300.0,8.364e-05,2]
[396970683,1765133354003,-300.0,8.364e-05,2]
[396970684,1765133354023,-300.0,8.364e-05,2]
[396970685,1765133354043,-300.0,8.364e-05,2]
[396970686,1765133354064,-300.0,8.364e-05,2]
[396970687,1765133354086,-300.0,8.364e-05,2]
[396970688,1765133354107,-300.0,8.364e-05,2]
[396970689,1765133354129,-300.0,8.364e-05,2]
[396970690,1765133354151,-300.0,8.364e-05,2]
[396970691,1765133354172,-300.0,8.364e-05,2]
[396970692,1765133354192,-300.0,8.364e-05,2]
[396970693,1765133354213,-300.0,8.364e-05,2]
[396970694,1765133354233,-300.0,8.364e-05,2]
[396970695,1765133354257,-300.0,8.364e-05,2]
[396970696,1765133354277,-300.0,8.364e-05,2]
[396970697,1765133354300,-600.0,8.364e-05,2]
[396970698,1765133354324,-354.72,8.399e-05,2]
[396970699,1765133354347,-184.45,8.4e-05,2]
[396970700,1765133354368,-512.47668088,8.596e-05,2]
[396970701,1765133354390,-184.45,8.6e-05,2]
[396970702,1765133354410,-209.11747475,8.628e-05,2]
[396970703,1765133354431,-376.03504309,8.628e-05,2]
[396970704,1765133354458,-413.84,8.722e-05,2]
[396970705,1765133354480,-472.96,9.045e-05,2]
[396970706,1765133354500,-420.0,9.199e-05,2]
[396970707,1765133354523,-720.0,9.2e-05,2]
[396970708,1765133354546,-532.08,9.368e-05,2]
[396970709,1765133354568,-396.38799597,9.56e-05,2]
[396970710,1765133354590,-70.42530883,9.691e-05,2]
[396970711,1765133370141,-399.31076779,8.026e-05,2]
[396970712,1765133370162,-184.45,8.7e-05,2]
[396970713,1765133370183,-184.45,8.9e-05,2]
[396970714,1765133370204,-184.45,9.1e-05,2]
[396970715,1765133370226,-184.45,9.3e-05,2]
[396970716,1765133370247,-184.45,9.5e-05,2]
[396970717,1765133370271,-154.25061555,9.6e-05,2]
[396970718,1765133410866,153.39,5.1e-05,2]
[396970719,1765133429858,153.56,5.1e-05,2]
[396970812,1765133438664,-153.39,5.3e-05,2]
[396970813,1765133438674,-153.39,5.5e-05,2]
[396970814,1765133438684,-153.39,5.7e-05,2]
[396970815,1765133438694,-153.39,5.9e-05,2]
[396970816,1765133438704,-153.39,6.1e-05,2]
[396970817,1765133438714,-9.00112357,6.3e-05,2]
[396970818,1765133438725,-144.38887643,6.3e-05,2]
[396970819,1765133438734,-153.39,6.5e-05,2]
[396970820,1765133438744,-150.0,6.792e-05,2]
[396970821,1765133438754,-153.39,6.8e-05,2]
[396970822,1765133438763,-153.39,7e-05,2]
[396970823,1765133438772,-150.0,7.115e-05,2]
[396970824,1765133438782,-153.39,7.2e-05,2]
[396970825,1765133438791,-153.39,7.4e-05,2]
[396970826,1765133438800,-150.0,7.439e-05,2]
[396970827,1765133438810,-153.39,7.6e-05,2]
[396970828,1765133438819,-150.0,7.762e-05,2]
[396970829,1765133438829,-153.39,7.8e-05,2]
[396970830,1765133438838,-153.39,8e-05,2]
[396970831,1765133438848,-150.0,8.085e-05,2]
[396970833,1765133438859,-153.39,8.2e-05,2]
[396970835,1765133438870,-153.39,8.4e-05,2]
[396970837,1765133438880,-150.0,8.409e-05,2]
[396970839,1765133438890,-153.39,8.6e-05,2]
[396970841,1765133438900,-159.62,8.732e-05,2]
[396970843,1765133438910,-153.39,8.8e-05,2]
[396970845,1765133438920,-153.39,9e-05,2]
[396970847,1765133438931,-182.43,9.056e-05,2]
[396970849,1765133438942,-153.39,9.2e-05,2]
[396970852,1765133438952,-205.23,9.379e-05,2]
[396970854,1765133438962,-153.39,9.4e-05,2]
[396970856,1765133438972,-153.39,9.7e-05,2]
[396970858,1765133438982,-228.03,9.702e-05,2]
[396970860,1765133438992,-153.39,9.9e-05,2]
[396970862,1765133439001,-851.4550806,9.98e-05,2]
[396970864,1765133439012,-232.0,9.98e-05,2]
[396970866,1765133439024,-300.0,9.998e-05,2]
[396970868,1765133439034,-250.0,9.999e-05,2]
[396970870,1765133439043,-238.84714903,9.999e-05,2]
[396970872,1765133439052,-500.0,9.999e-05,2]
[396970874,1765133439062,-500.0,9.999e-05,2]
[396970876,1765133439072,-500.0,9.999e-05,2]
[396970878,1765133439082,-500.0,9.999e-05,2]
[396970880,1765133439092,-500.0,9.999e-05,2]
[396970882,1765133439101,-500.0,9.999e-05,2]
[396970884,1765133439111,-500.0,9.999e-05,2]
[396970886,1765133439121,-500.0,9.999e-05,2]
[396970887,1765133439131,-437.10637035,9.999e-05,2]
[396970890,1765133439142,-500.0,9.999e-05,2]
[396970892,1765133439152,-500.0,9.999e-05,2]
[396970894,1765133439161,-500.0,9.999e-05,2]
[396970896,1765133439171,-13900.0,0.0001,2]
[396970898,1765133439180,-151.0,0.0001,2]
[396970900,1765133439189,-151.0,0.0001,2]
[396970902,1765133439200,-151.0,0.0001,2]
[396970904,1765133439211,-151.0,0.0001,2]
[396970906,1765133439220,-151.0,0.0001,2]
[396970908,1765133439229,-10000.0,0.0001,2]
[396970910,1765133439239,-151.0,0.0001,2]
[396970912,1765133439249,-151.0,0.0001,2]
[396970914,1765133439259,-151.0,0.0001,2]
[396970916,1765133439268,-151.0,0.0001,2]
[396970918,1765133439280,-273.048,0.00010065,2]
[396970945,1765133439521,-153.39,0.000101,2]
[396970950,1765133439554,-300.0,0.00010198,2]
[396970952,1765133439563,-300.0,0.00010198,2]
[396970954,1765133439572,-300.0,0.00010198,2]
[396970956,1765133439582,-300.0,0.00010198,2]
[396970958,1765133439591,-300.0,0.00010198,2]
[396970960,1765133439601,-300.0,0.00010198,2]
[396970962,1765133439609,-300.0,0.00010198,2]
[396970964,1765133439619,-300.0,0.00010198,2]
[396970966,1765133439627,-300.0,0.00010198,2]
[396970968,1765133439636,-300.0,0.00010198,2]
[396970970,1765133439646,-300.0,0.00010198,2]
[396970972,1765133439655,-300.0,0.00010198,2]
[396970974,1765133439665,-300.0,0.00010198,2]
[396970976,1765133439674,-300.0,0.00010198,2]
[396970978,1765133439684,-300.0,0.00010198,2]
[396970980,1765133439693,-600.0,0.00010198,2]
[396970983,1765133439709,-2230.315306,0.00010222,2]
[396970985,1765133439724,-500.0,0.000103,2]
[396970987,1765133439734,-153.39,0.000103,2]
[396970989,1765133439744,-408.92972684,0.000103,2]
[396970992,1765133439755,-500.0,0.000104,2]
[396970994,1765133439764,-153.39,0.000105,2]
[396970996,1765133439775,-151.0,0.00010548,2]
[396970998,1765133439785,-151.0,0.00010569,2]
[396971000,1765133439795,-151.0,0.00010569,2]
[396971002,1765133439804,-293788.74517513,0.00010585,2]
[396971004,1765133439818,-125226.36935857,0.00010585,2]
[396971085,1765133440551,-500.0,0.00010222,2]
[396971088,1765133440561,-216.55233586,0.00010222,2]
[396971482,1765133444536,-283.44766414,0.00010222,2]
[396971484,1765133444546,-500.0,0.00010222,2]
[396971486,1765133444559,-370.72374703,0.00010222,2]
[396971488,1765133444570,-5780.68058883,0.00010585,2]
[396971490,1765133444582,-2004.49999952,0.00010585,2]
[396971594,1765133446382,-17682.652669,0.00010585,2]
[396979166,1765134441106,-429.74946446,9.698e-05,2]
[396979168,1765134444080,-310.15200922,9.698e-05,2]
[396979352,1765134637124,-11.84833682,9.698e-05,2]
[396979353,1765134637138,-230.0,9.698e-05,2]
[396979354,1765134637150,-283.27054718,9.717e-05,2]
[396979355,1765134637163,-300.0,9.999e-05,2]
[396979356,1765134637176,-976.0,9.999e-05,2]
[396979357,1765134637189,-10000.0,0.0001,2]
[396979358,1765134637203,-300.0,0.00010197,2]
[396979359,1765134637217,-300.0,0.00010197,2]
[396979360,1765134637230,-300.0,0.00010197,2]
[396979361,1765134637243,-300.0,0.00010197,2]
[396979362,1765134637256,-300.0,0.00010197,2]
[396979363,1765134637269,-300.0,0.00010197,2]
[396979364,1765134637281,-300.0,0.00010197,2]
[396979365,1765134637294,-300.0,0.00010197,2]
[396979366,1765134637307,-300.0,0.00010197,2]
[396979367,1765134637321,-300.0,0.00010197,2]
[396979368,1765134637333,-300.0,0.00010197,2]
[396979369,1765134637347,-300.0,0.00010197,2]
[396979370,1765134637361,-300.0,0.00010197,2]
[396979371,1765134637375,-300.0,0.00010197,2]
[396979372,1765134637387,-300.0,0.00010197,2]
[396979373,1765134637399,-600.0,0.00010197,2]
[396979374,1765134637413,-252.417,0.00010197,2]
[396979375,1765134637425,-2230.315306,0.00010479,2]
[396979376,1765134637436,-48628.51381801,0.00010485,2]
[396979409,1765134638653,-297.08773857,9.806e-05,2]
[396979614,1765134640914,-102.22302922,9.806e-05,2]
[396979616,1765134640925,-1731.1186632,0.00010485,2]
[396980064,1765134645387,-2080.75000043,0.00010485,2]
[396980228,1765134647039,-496.54434727,0.00010485,2]
[396980231,1765134647056,-115803.45162462,0.00010485,2]
[396980233,1765134647065,-603.8520202,0.000105,2]
[396980235,1765134647075,-500.0,0.0001051,2]
[396980237,1765134647085,-178.1630165,0.00010545,2]
[396980239,1765134647094,-250.0,0.00010584,2]
[396980241,1765134647104,-151.0,0.00010679,2]
[396980243,1765134647114,-151.0,0.00010679,2]
[396980245,1765134647123,-151.0,0.00010679,2]
[396980247,1765134647132,-151.0,0.00010679,2]
[396980249,1765134647141,-151.0,0.00010679,2]
[396980251,1765134647150,-500.0,0.00010685,2]
[396980253,1765134647160,-203.376542,0.00010685,2]
[396980255,1765134647170,-673.301244,0.00010685,2]
[396980257,1765134647180,-673.301244,0.00010685,2]
[396980259,1765134647190,-673.301244,0.00010685,2]
[396980261,1765134647201,-673.301244,0.00010685,2]
[396980263,1765134647211,-673.301244,0.00010685,2]
[396980265,1765134647220,-673.301244,0.00010685,2]
[396980267,1765134647230,-673.301244,0.00010685,2]
[396980269,1765134647240,-673.301244,0.00010685,2]
[396980271,1765134647249,-673.301244,0.00010685,2]
[396980273,1765134647259,-673.301244,0.00010685,2]
[396980276,1765134647269,-673.301244,0.00010685,2]
[396980277,1765134647278,-673.301244,0.00010685,2]
[396980279,1765134647288,-673.301244,0.00010685,2]
[396980281,1765134647297,-673.301244,0.00010685,2]
[396980283,1765134647306,-673.301244,0.00010685,2]
[396980286,1765134647316,-673.301244,0.00010685,2]
[396980288,1765134647326,-673.301244,0.00010685,2]
[396980290,1765134647335,-673.301244,0.00010685,2]
[396980292,1765134647345,-673.301244,0.00010685,2]
[396980294,1765134647353,-673.301253,0.00010685,2]
[396980296,1765134647362,-2802.144627,0.00010685,2]
[396980298,1765134647371,-2802.144627,0.00010685,2]
[396980300,1765134647380,-2802.144627,0.00010685,2]
[396980302,1765134647390,-2802.144627,0.00010685,2]
[396980304,1765134647400,-2802.144627,0.00010685,2]
[396980306,1765134647409,-2802.144627,0.00010685,2]
[396980308,1765134647417,-2802.144627,0.00010685,2]
[396980310,1765134647426,-2802.144627,0.00010685,2]
[396980312,1765134647436,-2802.144627,0.00010685,2]
[396980314,1765134647445,-2802.144627,0.00010685,2]
[396980316,1765134647455,-2802.144627,0.00010685,2]
[396980318,1765134647464,-206.430119,0.00010685,2]
[396980320,1765134647473,-2802.144627,0.00010685,2]
[396980322,1765134647482,-206.430119,0.00010685,2]
[396980324,1765134647492,-2802.144627,0.00010685,2]
[396980326,1765134647500,-206.430119,0.00010685,2]
[396980328,1765134647509,-2802.144627,0.00010685,2]
[396980330,1765134647518,-206.430119,0.00010685,2]
[396980332,1765134647528,-2802.144627,0.00010685,2]
[396980334,1765134647538,-206.430119,0.00010685,2]
[396980336,1765134647547,-2802.144627,0.00010685,2]
[396980338,1765134647556,-206.430119,0.00010685,2]
[396980340,1765134647565,-2802.144627,0.00010685,2]
[396980342,1765134647575,-206.430119,0.00010685,2]
[396980344,1765134647584,-2802.144627,0.00010685,2]
[396980346,1765134647593,-206.430119,0.00010685,2]
[396980348,1765134647602,-326.857283,0.00010685,2]
[396980349,1765134647611,-2802.144627,0.00010685,2]
[396980351,1765134647621,-206.430119,0.00010685,2]
[396980353,1765134647630,-326.857283,0.00010685,2]
[396980356,1765134647641,-2802.144621,0.00010685,2]
[396980358,1765134647651,-206.430119,0.00010685,2]
[396980360,1765134647661,-326.857283,0.00010685,2]
[396980362,1765134647670,-206.430119,0.00010685,2]
[396980364,1765134647682,-326.857283,0.00010685,2]
[396980366,1765134647692,-206.430119,0.00010685,2]
[396980368,1765134647701,-206.430119,0.00010685,2]
[396980370,1765134647710,-326.857283,0.00010685,2]
[396980372,1765134647720,-206.430119,0.00010685,2]
[396980373,1765134647729,-326.857283,0.00010685,2]
[396980375,1765134647739,-206.430119,0.00010685,2]
[396980378,1765134647749,-326.857283,0.00010685,2]
[396980380,1765134647758,-206.430119,0.00010685,2]
[396980382,1765134647768,-326.857283,0.00010685,2]
[396980384,1765134647777,-326.857283,0.00010685,2]
[396980386,1765134647787,-206.430119,0.00010685,2]
[396980388,1765134647796,-326.857283,0.00010685,2]
[396980390,1765134647805,-206.430119,0.00010685,2]
[396980392,1765134647813,-326.857283,0.00010685,2]
[396980394,1765134647822,-206.430119,0.00010685,2]
[396980395,1765134647831,-326.857283,0.00010685,2]
[396980398,1765134647842,-206.430126,0.00010685,2]
[396980400,1765134647852,-326.857283,0.00010685,2]
[396980402,1765134647861,-326.857283,0.00010685,2]
[396980404,1765134647870,-326.857283,0.00010685,2]
[396980405,1765134647880,-326.857283,0.00010685,2]
[396980408,1765134647890,-326.857283,0.00010685,2]
[396980410,1765134647899,-326.857283,0.00010685,2]
[396980412,1765134647909,-326.857283,0.00010685,2]
[396980414,1765134647918,-326.857277,0.00010685,2]
[396980416,1765134647927,-424.057743,0.00010685,2]
[396980417,1765134647937,-424.057743,0.00010685,2]
[396980419,1765134647947,-424.057743,0.00010685,2]
[396980422,1765134647956,-424.057743,0.00010685,2]
[396980443,1765134648154,-424.057743,0.00010685,2]
[396980447,1765134648181,-465.698661,0.00010685,2]
[396980449,1765134648191,-424.057743,0.00010685,2]
[396980451,1765134648201,-465.698661,0.00010685,2]
[396980453,1765134648211,-424.057743,0.00010685,2]
[396980455,1765134648219,-465.698661,0.00010685,2]
[396980457,1765134648229,-424.057743,0.00010685,2]
[396980459,1765134648238,-465.698661,0.00010685,2]
[396980461,1765134648247,-424.057743,0.00010685,2]
[396980463,1765134648257,-465.698661,0.00010685,2]
[396980465,1765134648266,-424.057743,0.00010685,2]
[396980467,1765134648276,-465.698661,0.00010685,2]
[396980469,1765134648286,-424.057743,0.00010685,2]
[396980471,1765134648296,-465.698661,0.00010685,2]
[396980473,1765134648306,-424.057743,0.00010685,2]
[396980475,1765134648316,-424.057743,0.00010685,2]
[396980477,1765134648326,-465.698661,0.00010685,2]
[396980479,1765134648334,-424.057743,0.00010685,2]
[396980481,1765134648343,-465.698661,0.00010685,2]
[396980483,1765134648352,-424.057743,0.00010685,2]
[396980485,1765134648363,-465.698661,0.00010685,2]
[396980487,1765134648372,-424.057743,0.00010685,2]
[396980488,1765134648384,-465.698661,0.00010685,2]
[396980490,1765134648394,-424.057743,0.00010685,2]
[396980492,1765134648403,-465.698661,0.00010685,2]
[396980494,1765134648412,-465.698661,0.00010685,2]
[396980496,1765134648421,-424.057743,0.00010685,2]
[396980498,1765134648431,-424.057743,0.00010685,2]
[396980500,1765134648440,-465.698661,0.00010685,2]
[396980502,1765134648451,-424.05774,0.00010685,2]
[396980504,1765134648461,-465.698661,0.00010685,2]
[396980506,1765134648470,-465.698661,0.00010685,2]
[396980508,1765134648479,-465.698661,0.00010685,2]
[396980510,1765134648488,-465.698661,0.00010685,2]
[396980512,1765134648498,-465.698661,0.00010685,2]
[396980514,1765134648507,-465.698663,0.00010685,2]
[396980516,1765134648517,-151.0,0.00010685,2]
[396980518,1765134648527,-151.0,0.00010685,2]
[396980520,1765134648536,-151.0,0.00010685,2]
[396980522,1765134648545,-151.0,0.00010685,2]
[396980524,1765134648556,-151.0,0.00010685,2]
[396980526,1765134648566,-151.0,0.00010685,2]
[396980528,1765134648575,-151.0,0.00010685,2]
[396980530,1765134648585,-224.543415,0.00010685,2]
[396980532,1765134648594,-151.0,0.00010685,2]
[396980534,1765134648605,-151.0,0.00010685,2]
[396980536,1765134648615,-152.962506,0.00010685,2]
[396980538,1765134648625,-162.389992,0.00010685,2]
[396980540,1765134648635,-260.285147,0.00010685,2]
[396980542,1765134648644,-260.285147,0.00010685,2]
[396980544,1765134648653,-260.285147,0.00010685,2]
[396980546,1765134648662,-260.285147,0.00010685,2]
[396980548,1765134648672,-260.285147,0.00010685,2]
[396980550,1765134648685,-260.285147,0.00010685,2]
[396980552,1765134648694,-260.285147,0.00010685,2]
[396980554,1765134648703,-260.285147,0.00010685,2]
[396980556,1765134648712,-260.285147,0.00010685,2]
[396980558,1765134648722,-260.285147,0.00010685,2]
[396980560,1765134648731,-260.285147,0.00010685,2]
[396980562,1765134648740,-260.285147,0.00010685,2]
[396980564,1765134648748,-260.285147,0.00010685,2]
[396980566,1765134648758,-260.285147,0.00010685,2]
[396980568,1765134648769,-260.285147,0.00010685,2]
[396980570,1765134648778,-260.285147,0.00010685,2]
[396980572,1765134648787,-260.285147,0.00010685,2]
[396980574,1765134648796,-260.285147,0.00010685,2]
[396980576,1765134648806,-260.285147,0.00010685,2]
[396980578,1765134648816,-260.285145,0.00010685,2]
[396980580,1765134648825,-260.321887,0.00010685,2]
[396980582,1765134648834,-260.321887,0.00010685,2]
[396980584,1765134648844,-260.321887,0.00010685,2]
[396980586,1765134648853,-260.321887,0.00010685,2]
[396980587,1765134648863,-260.321887,0.00010685,2]
[396980589,1765134648872,-260.321887,0.00010685,2]
[396980591,1765134648881,-260.321887,0.00010685,2]
[396980593,1765134648890,-260.321887,0.00010685,2]
[396980595,1765134648900,-260.321887,0.00010685,2]
[396980597,1765134648909,-260.321887,0.00010685,2]
[396980599,1765134648918,-260.321887,0.00010685,2]
[396980601,1765134648929,-260.321887,0.00010685,2]